[Event "Croatian 1B League 2022"]
[Site "Porec"]
[Date "2022.09.25"]
[Round "2.4"]
[White "Plenkovic, Zdenko"]
[Black "Petrov, Jole"]
[Result "1/2-1/2"]
[ECO "B15"]
[WhiteElo "2367"]
[BlackElo "2370"]
[Annotator "TA"]
[PlyCount "167"]
[EventDate "2022.09.24"]
[EventType "team-tourn"]
[EventCountry "CRO"]
[SourceTitle "playchess.com"]
[Source "ChessBase"]
[SourceQuality "1"]
[TimeControl "40/5400+30:1800+30"]

{[%evp 15,167,0,13,0,0,0,0,3,0,-25,-18,-2,-1,-16,-8,-10,0,0,12,-12,0,0,7,10,22,-12,20,-13,-8,-10,0,0,0,0,0,0,7,0,0,0,0,0,23,0,0,0,25,19,80,82,81,83,96,93,97,96,110,112,113,112,124,112,141,135,160,149,143,128,134,128,153,142,164,131,153,0,155,142,132,125,144,151,162,152,145,140,138,128,147,142,169,116,122,82,98,81,113,116,143,133,140,135,142,104,127,132,158,124,148,145,170,167,169,70,78,69,78,96,191,71,104,99,144,151,177,132,129,150,204,145,141,143,144,104,116,116,131,131,134,75,116,75,75,74,77,75,79,79,104,74,74,74,74,66]} 1. e4 {[%emt 0:04:37]} c6 {[%emt 0:00:57]} 2. d4 {[%emt 0:00:10]} d5 {[%emt 0:00:06]} 3. Nc3 {[%emt 0:00:27]} dxe4 {[%emt 0:02:40]} 4. Nxe4 {[%emt 0:00:21]} Nf6 {[%emt 0:03:08]} 5. Nxf6+ {[%emt 0:00:46]} exf6 {[%emt 0:00:05]} 6. Nf3 {[%emt 0:01:57]} Bd6 {[%emt 0:00:18]} 7. Bd3 {[%emt 0:00:23]} O-O {[%emt 0:00:12]} 8. O-O {[%emt 0:00:10]} Bg4 {[%emt 0:06:26]} 9. Re1 {[%emt 0:03:22] B15: Caro-Kann: 3 Nc3: 3...g6 and 3...dxe4 4 Nxe4 Nf6 5 Nxf6+ exf6.} Nd7 {[%emt 0:07:38][%cal Bb8d7,Bd7f8,Bf8e6][%mdl 32]} 10. h3 {[%emt 0:05:08]} Bh5 {[%emt 0:00:11]} 11. Bf5 {[%emt 0:07:47] The position is equal. 11.c3 gains popularity.} Re8 {[%emt 0:07:52]} 12. Be3 {[%emt 0:11:51] [#]} Nf8 $146 {[%emt 0:03:58]} ({Predecessor:} 12... Nb6 13. g4 Bg6 14. Nh4 Bc7 15. Qf3 Qd6 16. Rad1 Re7 17. b3 Rae8 18. c4 Nd7 {1-0 (36) Flermoen,P (2252)-Aulin Jansson,J (2270) Norway 2018}) 13. g4 {[%emt 0:16:53]} Bg6 {[%emt 0:00:24]} 14. Nd2 {[%emt 0:00:39]} Bc7 {[%emt 0:23:37]} 15. Qf3 {[%emt 0:06:10]} Ne6 {[%emt 0:00:08]} 16. c3 {[%emt 0:01:01]} Qd6 {[%emt 0:03:21]} 17. Nf1 {[%emt 0:06:11] Active counter play!} Rad8 {[%emt 0:10:56]} 18. Rad1 {[%emt 0:04:58]} Ng5 {[%emt 0:05:51]} 19. Bxg5 {[%emt 0:02:15]} fxg5 {[%emt 0:00:55]} 20. Re3 {[%emt 0:01:12]} Qf4 {[%emt 0:06:36]} 21. Kg2 {[%emt 0:04:23]} Bxf5 {[%emt 0:01:28]} 22. gxf5 {[%emt 0:00:08]} Qxf3+ {[%emt 0:01:06]} 23. Kxf3 {[%emt 0:00:06]} Bf4 {[%emt 0:00:43]} 24. Rxe8+ {[%emt 0:01:48]} Rxe8 $11 {[%emt 0:00:01][%mdl 4096] Endgame KRB-KRN} 25. Ne3 {[%emt 0:00:10]} h5 {[%emt 0:03:13]} 26. c4 {[%emt 0:05:47]} Kf8 {[%emt 0:01:16]} 27. h4 {[%emt 0:05:27]} f6 {[%emt 0:02:32]} 28. Rh1 {[%emt 0:00:55]} Rd8 {[%emt 0:01:45]} (28... Bxe3 $5 29. fxe3 g4+ 30. Kf4 Ke7 $14) 29. Ke4 {[%emt 0:00:48]} Re8+ {[%emt 0:00:17]} 30. Kf3 {[%emt 0:01:46]} Rd8 {[%emt 0:00:37]} 31. Nc2 {[%emt 0:01:29]} g6 {[%emt 0:06:58]} (31... Kf7 $11 {remains equal.}) 32. fxg6 $16 {[%emt 0:01:17] Hoping for hxg5.} Kg7 {[%emt 0:00:05]} 33. hxg5 {[%emt 0:00:06]} fxg5 {[%emt 0:00:07]} 34. Rxh5 {[%emt 0:00:16] Strongly threatening Rh7+.} Kxg6 {[%emt 0:00:01]} 35. Rh1 {[%emt 0:00:22]} Rd7 {[%emt 0:00:50]} 36. Rh8 {[%emt 0:02:05]} Rf7 {[%emt 0:00:45] aiming for ...Be5+.} 37. Ke2 {[%emt 0:00:26]} Kf5 {[%emt 0:01:11]} 38. Re8 {[%emt 0:00:18] Against Re7+} Bc1 {[%emt 0:00:37]} 39. b3 {[%emt 0:01:19]} Rd7 {[%emt 0:00:10]} 40. Ne3+ {[%emt 0:00:00]} Kg6 {[%emt 0:00:00]} 41. Re6+ {[%emt 0:05:09]} Kf7 {[%emt 0:01:39]} 42. Re4 {[%emt 0:00:24]} Kf6 {[%emt 0:01:11]} 43. Kd3 {[%emt 0:00:49]} Rd8 {[%emt 0:01:04]} 44. Ng4+ {[%emt 0:01:52]} Kf5 {[%emt 0:00:19]} 45. Ne3+ {[%emt 0:02:11]} Kf6 $1 {[%emt 0:00:34]} 46. Re5 {[%emt 0:00:27]} Bb2 {[%emt 0:01:12]} 47. Ng4+ {[%emt 0:03:21]} Kg6 {[%emt 0:00:33]} 48. Re4 {[%emt 0:00:05]} Kf5 {[%emt 0:00:28][%cal Ob2d4]} 49. Ne3+ {[%emt 0:01:42]} Kf6 {[%emt 0:00:23]} 50. d5 {[%emt 0:00:26]} Kf7 {[%emt 0:05:18]} 51. Kc2 {[%emt 0:09:50]} Ba3 {[%emt 0:03:59]} 52. Re5 {[%emt 0:01:54]} Kf6 {[%emt 0:00:55]} 53. Re6+ {[%emt 0:00:34]} (53. Ng4+ $18 Kg6 54. Re6+ Kh5 55. f3 (55. dxc6 Kxg4 56. cxb7 Rb8 $11)) 53... Kf7 {[%emt 0:00:08]} 54. Rh6 {[%emt 0:00:34]} cxd5 {[%emt 0:03:21]} 55. Nxd5 {[%emt 0:01:05] Threatens to win with Rh7+.} Bc5 {[%emt 0:01:15]} 56. b4 {[%emt 0:00:51]} Kg7 {[%emt 0:00:29]} 57. Rh2 {[%emt 0:02:06]} Bd6 {[%emt 0:00:54]} 58. Rg2 {[%emt 0:00:46]} Kh6 {[%emt 0:00:09]} 59. Kc3 {[%emt 0:00:36]} Rf8 {[%emt 0:00:40]} 60. Kd4 {[%emt 0:00:39]} Re8 {[%emt 0:01:09]} 61. c5 {[%emt 0:01:05]} Be5+ {[%emt 0:00:10]} 62. Kd3 {[%emt 0:00:57]} a5 {[%emt 0:01:38]} 63. a3 {[%emt 0:01:18]} ({Don't play} 63. bxa5 Ra8 $16) 63... Bb2 {[%emt 0:00:24]} 64. a4 {[%emt 0:03:49]} ({Resist} 64. bxa5 $6 Ra8 $16) (64. Kc4 $18) 64... axb4 {[%emt 0:00:29]} 65. f4 {[%emt 0:01:13]} Bc1 {[%emt 0:02:24]} 66. fxg5+ {[%emt 0:00:53]} Bxg5 {[%emt 0:00:02] [#]} (66... Kg6 $16) 67. Nxb4 {[%emt 0:00:26]} (67. Rb2 $1 $18 {[%cal Rb2b4] is the precise move to win.}) 67... Re3+ {[%emt 0:00:53]} 68. Kc4 {[%emt 0:00:15]} Ra3 {[%emt 0:00:23]} 69. Ra2 {[%emt 0:01:17]} Rg3 {[%emt 0:01:43]} 70. Rb2 {[%emt 0:00:24]} Ra3 {[%emt 0:00:58] [#]} 71. Kb5 $1 {[%emt 0:00:36]} Be7 {[%emt 0:00:37]} (71... Kg7 $16 72. c6 bxc6+ 73. Nxc6 Rg3) 72. c6 {[%emt 0:02:05]} bxc6+ {[%emt 0:01:04]} 73. Nxc6 {[%emt 0:00:04]} Bf6 {[%emt 0:00:51]} 74. Rb4 {[%emt 0:00:46]} Ra1 {[%emt 0:03:21]} 75. Rb3 {[%emt 0:00:34]} Bh4 {[%emt 0:00:39]} 76. a5 {[%emt 0:00:42]} Bf2 {[%emt 0:00:14]} 77. Ne5 {[%emt 0:00:25]} (77. Rb2 $142 Bg1 78. Rg2) 77... Kg7 {[%emt 0:01:24] White is better.} 78. Nd3 {[%emt 0:00:26]} Bg1 {[%emt 0:01:25]} 79. Nb2 {[%emt 0:01:04]} Bd4 {[%emt 0:01:01]} 80. Na4 {[%emt 0:00:11]} Kf7 {[%emt 0:00:24]} 81. Rb4 {[%emt 0:00:20]} Bg1 {[%emt 0:00:47]} 82. Ka6 {[%emt 0:00:59]} Be3 {[%emt 0:00:22]} 83. Rc4 {[%emt 0:01:02]} Bd2 {[%emt 0:00:49]} 84. Re4 {[%emt 0:00:21] Weighted Error Value: White=0.13 (very precise) /Black=0.11 (very precise)} 1/2-1/2

[Event "Croatian 1B League 2022"]
[Site "Porec"]
[Date "2022.09.25"]
[Round "2.5"]
[White "Zelenika, Srdjan"]
[Black "Bilobrk, Franjo"]
[Result "0-1"]
[ECO "B85"]
[WhiteElo "2207"]
[BlackElo "2341"]
[Annotator "TA"]
[PlyCount "90"]
[EventDate "2022.09.24"]
[EventType "team-tourn"]
[EventCountry "CRO"]
[SourceTitle "playchess.com"]
[Source "ChessBase"]
[SourceQuality "1"]
[TimeControl "40/5400+30:1800+30"]

{[%evp 27,90,16,2,0,25,10,29,25,115,106,547,0,0,0,-16,-8,-12,-27,-29,-21,0,0,0,0,0,0,0,0,0,-18,0,-47,-55,-56,-40,-57,-37,-24,-42,-118,-104,-128,-117,-111,-132,-1362,-1397,-1386,-1266,-1323,-1264,-1158,-1025,-828,-721,-465,0,0,0,0,0,0,0,0,0]} 1. e4 {[%emt 0:00:02]} c5 {[%emt 0:00:05]} 2. Nf3 {[%emt 0:00:17]} e6 {[%emt 0:00:10]} 3. d4 {[%emt 0:00:15]} cxd4 {[%emt 0:00:09]} 4. Nxd4 {[%emt 0:00:07]} Nc6 {[%emt 0:00:10]} 5. Nc3 {[%emt 0:00:27]} Qc7 {[%emt 0:00:15]} 6. Be2 {[%emt 0:00:46]} a6 {[%emt 0:00:13]} 7. O-O {[%emt 0:00:39]} Nf6 {[%emt 0:00:05]} 8. Be3 {[%emt 0:01:07]} Be7 {[%emt 0:01:35]} 9. f4 {[%emt 0:01:04]} d6 {[%emt 0:00:09]} 10. Kh1 {[%emt 0:01:25]} O-O {[%emt 0:00:09]} 11. Qe1 {[%emt 0:00:47]} Nxd4 {[%emt 0:00:20]} 12. Bxd4 {[%emt 0:00:07]} b5 {[%emt 0:00:15]} 13. Qg3 {[%emt 0:01:07]} Bb7 {[%emt 0:00:27]} 14. a3 {[%emt 0:00:52]} Rad8 {[%emt 0:01:32]} 15. Bd3 {[%emt 0:03:32] B85: Sicilian Scheveningen: 6 Be2 a6, lines with early Be3.} Rd7 {[%emt 0:01:01]} 16. Rae1 {[%emt 0:17:34]} Qd8 {[%emt 0:03:36]} 17. Qh3 {[%emt 0:04:06] White has an edge.} g6 {[%emt 0:03:25]} (17... Re8 $11) 18. f5 $1 $16 {[%emt 0:02:24]} ({Reject} 18. Qh6 $6 e5 19. fxe5 dxe5 20. Bxe5 Nh5 $11) 18... gxf5 {[%emt 0:11:22][%mdl 8192] [#]} (18... e5 $16 {is tougher.} 19. Be3 Bc6) 19. exf5 $146 {[%emt 0:34:15]} ({Inferior is} 19. Qg3+ Kh8 $11) (19. Nd5 $1 $18 {[%mdl 512]}) ({Predecessor:} 19. Nd5 Kg7 20. Rxf5 Bxd5 21. Rg5+ Kh8 22. Bxf6+ Bxf6 23. exd5 {1-0 (23) Wang,H (2690)-Zeng,C (2536) China 2017}) 19... e5 $11 {[%emt 0:00:37]} 20. Bg1 {[%emt 0:01:02]} Kh8 {[%emt 0:00:32]} 21. Ne4 {[%emt 0:03:44]} Rg8 {[%emt 0:01:13] Prevents Ng5.} 22. Re2 {[%emt 0:04:44]} Nxe4 {[%emt 0:23:15]} 23. Bxe4 {[%emt 0:05:31][%cal Of5f6] aiming for f6!} Bxe4 {[%emt 0:01:38]} (23... d5 $5 {[%cal Rd5e4]} 24. Bf3 Bf6 $15) 24. Rxe4 {[%emt 0:00:10][%cal Of5f6]} Bf6 {[%emt 0:00:38]} 25. c3 {[%emt 0:03:08]} d5 {[%emt 0:03:30]} 26. Re2 {[%emt 0:00:44]} d4 {[%emt 0:04:24]} 27. cxd4 {[%emt 0:00:21]} exd4 {[%emt 0:00:01]} 28. Qd3 {[%emt 0:00:16]} Re8 {[%emt 0:06:38]} 29. Rfe1 {[%emt 0:00:37]} (29. Rd2 $11) 29... Rxe2 $15 {[%emt 0:01:34]} 30. Rxe2 {[%emt 0:00:05]} h6 {[%emt 0:06:17]} 31. h3 $1 {[%emt 0:03:09]} Kh7 {[%emt 0:02:27]} (31... Rc7 $5 {[%cal Rc7c1]}) 32. Bh2 {[%emt 0:05:11]} Re7 {[%emt 0:00:59] ...Rxe2 is the strong threat.} 33. Rxe7 {[%emt 0:03:57]} ({Better is} 33. Bf4 $15) 33... Qxe7 {[%emt 0:00:08][%mdl 4096] Endgame KQB-KQB} 34. Bf4 {[%emt 0:00:11] Prevents Qe3.} Qe1+ {[%emt 0:01:03]} 35. Kh2 {[%emt 0:00:05]} Qf2 {[%emt 0:00:14][%csl LRb2,LRf4]} 36. Qd2 {[%emt 0:00:36][%mdl 8192]} (36. Bd6 $17) 36... Qxd2 $19 {[%emt 0:00:12]} 37. Bxd2 {[%emt 0:00:04] [#] KB-KB} d3 $1 {[%emt 0:00:30]} 38. Kg3 {[%emt 0:00:22]} Bxb2 {[%emt 0:00:17]} 39. Kf3 {[%emt 0:00:11]} Bxa3 {[%emt 0:01:21] Threatens to win with ...b4.} 40. Ke4 {[%emt 0:00:00]} b4 {[%emt 0:00:00]} 41. Kxd3 {[%emt 0:00:39] [#]} b3 $2 {[%emt 0:03:08]} (41... a5 $1 $19 {[%cal Ra5a4]} 42. Be3 b3) 42. Ba5 $11 {[%emt 0:06:54] The position is equal.} Bc1 {[%emt 0:01:25]} 43. Kc3 {[%emt 0:00:08]} b2 {[%emt 0:00:20]} 44. Kc2 {[%emt 0:00:05]} Kg7 {[%emt 0:00:51] And now ...Kf6 would win.} 45. Bc3+ {[%emt 0:02:00]} Kf8 {[%emt 0:00:31][%mdl 32768] Weighted Error Value: White=0.49/Black=0.36. Sensor Board Error (Ke4/e5)?} 0-1

[Event "Croatian 1B League 2022"]
[Site "Porec"]
[Date "2022.09.25"]
[Round "2.6"]
[White "Zelic, Mladen"]
[Black "Klobucar, Dean"]
[Result "1/2-1/2"]
[ECO "C01"]
[WhiteElo "2210"]
[BlackElo "2196"]
[Annotator "TA"]
[PlyCount "44"]
[EventDate "2022.09.24"]
[EventType "team-tourn"]
[EventCountry "CRO"]
[SourceTitle "playchess.com"]
[Source "ChessBase"]
[SourceQuality "1"]
[TimeControl "40/5400+30:1800+30"]

{[%evp 11,44,9,25,18,19,2,3,0,8,0,6,0,0,-3,-2,-28,-31,-42,-25,-40,6,-68,-26,-69,-54,-94,-95,-120,-103,-120,-125,-163,-162,-166,-168]} 1. e4 {[%emt 0:00:12]} e6 {[%emt 0:00:09]} 2. d4 {[%emt 0:00:08]} d5 {[%emt 0:00:06]} 3. Nc3 {[%emt 0:00:19]} Bb4 {[%emt 0:00:06]} 4. exd5 {[%emt 0:00:31]} exd5 {[%emt 0:01:02]} 5. Bd3 {[%emt 0:00:08]} Ne7 {[%emt 0:00:48]} 6. Nf3 {[%emt 0:00:49]} Bg4 {[%emt 0:00:23]} 7. O-O {[%emt 0:01:34] C01: French: Exchange Variation.} Nbc6 {[%emt 0:02:18]} 8. h3 {[%emt 0:02:14]} Bh5 {[%emt 0:18:11]} 9. a3 {[%emt 0:07:18] The position is equal.} Bxf3 {[%emt 0:19:02]} 10. Qxf3 {[%emt 0:00:14]} Nxd4 {[%emt 0:05:18] [#]} 11. Qg3 $146 {[%emt 0:06:32]} ({Predecessor:} 11. Qg4 Bxc3 12. bxc3 Ne6 13. Rb1 b6 14. c4 d4 15. Re1 Qd6 16. Qe4 Rd8 17. Qh4 {½-½ (25) Wittig,F (2334)-Schatz,H (2279) Remote email 2013}) 11... Bxc3 {[%emt 0:08:00]} 12. bxc3 {[%emt 0:00:07]} Ne6 {[%emt 0:00:12]} 13. f4 {[%emt 0:00:15]} Qd6 {[%emt 0:04:02]} 14. a4 {[%emt 0:07:42]} O-O {[%emt 0:06:59]} 15. Ba3 {[%emt 0:04:21]} c5 {[%emt 0:01:35]} (15... Nc5 $15 {should be considered.}) 16. Rae1 {[%emt 0:00:49]} (16. Qe3 $1 $11) 16... Rae8 {[%emt 0:07:51]} 17. Qf3 {[%emt 0:08:45]} Nc6 {[%emt 0:05:44]} 18. Qh5 {[%emt 0:14:18][%csl Gd3][%cal Rh5h7] [#]} g6 {[%emt 0:01:35]} 19. Qh4 {[%emt 0:02:04]} f5 {[%emt 0:06:02]} 20. Qf2 {[%emt 0:03:49]} b6 {[%emt 0:00:55]} 21. Bb5 {[%emt 0:01:29]} Nc7 {[%emt 0:00:33]} 22. Bd3 {[%emt 0:08:36]} Rxe1 {[%emt 0:01:31] Weighted Error Value: White=0.22 (precise) /Black=0.10 (very precise)} 1/2-1/2

[Event "Croatian 1B League 2022"]
[Site "Porec"]
[Date "2022.09.25"]
[Round "2.7"]
[White "Doric, Darko"]
[Black "Draskovic, Luka"]
[Result "0-1"]
[ECO "E94"]
[WhiteElo "2457"]
[BlackElo "2492"]
[Annotator "TA"]
[PlyCount "116"]
[EventDate "2022.09.24"]
[EventType "team-tourn"]
[EventCountry "CRO"]
[SourceTitle "playchess.com"]
[Source "ChessBase"]
[SourceQuality "1"]
[TimeControl "40/5400+30:1800+30"]

{[%evp 17,116,14,14,0,0,0,0,0,0,0,10,10,9,7,7,0,0,-14,-32,-54,-65,-52,-36,-50,-31,-27,-3,-14,0,-83,-48,-183,-120,-112,-114,-116,-117,-288,-100,-319,-348,-389,-386,-356,-317,-447,-321,-304,-300,-590,-583,-607,-610,-1029,-1042,-1708,-1639,-1678,-1632,-1520,-1519,-1349,-1310,-1117,-770,-763,-517,-518,-517,-510,-406,-410,-404,-1648,-1679,-1545,-1415,-1163,-1150,-1972,-1876,-1591,-1432,-1815,-1720,-29937,-1456,-12825,-11430,-11345,-5297,-6531,-6461,-11651,-6498,-5012,-2564,-29967,-29964,-6410,-1701]} 1. d4 {[%emt 0:00:03]} d6 {[%emt 0:00:30]} 2. Nf3 {[%emt 0:04:31]} Nf6 {[%emt 0:00:11]} 3. c4 {[%emt 0:00:23]} g6 {[%emt 0:00:32]} 4. Nc3 {[%emt 0:00:13]} Bg7 {[%emt 0:00:53]} 5. e4 {[%emt 0:00:12]} O-O {[%emt 0:02:01]} 6. Be2 {[%emt 0:00:08]} Na6 {[%emt 0:00:37]} 7. O-O {[%emt 0:00:13]} e5 {[%emt 0:00:26]} 8. d5 {[%emt 0:04:08]} Nc5 {[%emt 0:00:55]} 9. Qc2 {[%emt 0:00:27]} a5 {[%emt 0:00:45]} 10. Re1 {[%emt 0:02:58] E94: King's Indian: Classical: 6 Be2 e5 7 0-0: Various Black 7th moves.} Nh5 {[%emt 0:11:26]} 11. Bg5 {[%emt 0:00:50]} f6 {[%emt 0:04:17]} 12. Be3 {[%emt 0:00:05] The position is equal.} b6 {[%emt 0:03:49] [#]} 13. Nd2 $146 {[%emt 0:02:36]} ({Predecessor:} 13. Qd2 Bd7 14. h3 a4 15. Rac1 Bh8 16. Nh2 Qe8 17. Qd1 Nf4 18. Bxf4 exf4 19. Bg4 {1-0 (46) Kardon,Z-Waldmann,I (2275) Hungary 1996}) 13... Nf4 {[%emt 0:07:14]} 14. Bf1 {[%emt 0:00:05]} f5 {[%emt 0:01:01]} 15. b3 {[%emt 0:09:48]} (15. exf5 {is more complex.} Bxf5 16. Nde4 Qe8 17. Bxc5 bxc5 18. b3) 15... Nh5 {[%emt 0:10:35]} (15... Bd7 {feels hotter.} 16. a3 Qg5 17. f3 h5) 16. exf5 {[%emt 0:05:33]} gxf5 {[%emt 0:01:39]} 17. f3 {[%emt 0:00:54]} Qf6 {[%emt 0:07:12]} 18. Rac1 {[%emt 0:02:53]} Bh6 {[%emt 0:02:22]} 19. Bxh6 {[%emt 0:05:24]} Qxh6 {[%emt 0:00:05]} 20. a3 {[%emt 0:04:29]} Rf7 {[%emt 0:13:33]} 21. b4 {[%emt 0:02:35]} Na6 {[%emt 0:01:00]} 22. Rb1 {[%emt 0:00:58]} Bd7 {[%emt 0:03:54]} 23. bxa5 {[%emt 0:15:34]} (23. c5 $11) 23... bxa5 $17 {[%emt 0:00:52]} 24. Nb5 {[%emt 0:10:26] [#]} (24. Nb3 $15) 24... Kh8 {[%emt 0:03:17]} ({Better is} 24... Nf4 $1 $19 {aiming for ...Rg7.} 25. Nc3 Rg7) 25. c5 {[%emt 0:06:53]} Nxc5 {[%emt 0:02:36]} 26. Nc4 {[%emt 0:00:09][%cal Oc4e5]} Na6 {[%emt 0:11:48]} 27. Nxa5 $2 {[%emt 0:03:27]} (27. Qc3 $17) 27... Rg8 $2 {[%emt 0:00:46]} (27... Rg7 $19 {is more deadly. Strongly threatening ...Nf4.} 28. Nc3 {[#]} (28. Nxc7 $2 Nxc7 29. Qxc7 Bb5 $19) 28... Rag8 $1) 28. Nc4 $2 {[%emt 0:00:39]} (28. Nxc7 $17 Nc5 29. Rb6) 28... Rfg7 $19 {[%emt 0:00:29]} 29. Rb2 {[%emt 0:04:53]} Nf4 {[%emt 0:00:35]} 30. Ne3 {[%emt 0:00:18]} Qh4 {[%emt 0:01:57]} 31. Qd2 {[%emt 0:00:57]} (31. Reb1 $142 Qh5 32. Qd1) 31... Rg6 {[%emt 0:01:00]} 32. g3 {[%emt 0:05:00]} Qh5 {[%emt 0:01:56][%cal Og6g3] Prevents Ng4.} 33. Bg2 $2 {[%emt 0:04:49]} (33. Rc1 Rh6 34. Rb3 (34. Nxc7 $2 Qxf3 35. Nxa6 Rxh2 $19) 34... Qxf3 35. Nxf5 Rxg3+ 36. Nxg3 Qxb3 37. Rc3) 33... Nxg2 {[%emt 0:00:38]} ({And not} 33... Rh6 34. gxf4 (34. Nf1 $2 Nxg2 35. Qxg2 Nc5 $19) 34... Qxh2+ 35. Kf1 Qxf4 36. Rd1 $19) 34. Qxg2 {[%emt 0:04:04]} f4 {[%emt 0:00:22]} 35. Nf1 {[%emt 0:00:24]} Bh3 {[%emt 0:01:19]} 36. g4 {[%emt 0:00:59]} Bxg4 {[%emt 0:02:09]} 37. fxg4 {[%emt 0:00:06]} Rxg4 {[%emt 0:00:05]} 38. Ng3 {[%emt 0:00:53]} fxg3 {[%emt 0:01:42]} 39. h3 {[%emt 0:00:00]} Rh4 {[%emt 0:00:00]} 40. Rf1 {[%emt 0:00:00]} Rxh3 {[%emt 0:00:00]} 41. Qf3 {[%emt 0:00:49]} Qxf3 {[%emt 0:02:29]} 42. Rxf3 {[%emt 0:02:58]} Rh4 {[%emt 0:01:54]} 43. Rbb3 {[%emt 0:02:29]} g2 {[%emt 0:06:37] ( -> ...Rh1+)} 44. Rg3 {[%emt 0:00:07]} Rhg4 {[%emt 0:00:59]} ({Don't go for} 44... Nc5 $2 45. Rxg8+ Kxg8 46. Rc3 $19) 45. Kxg2 {[%emt 0:00:45]} (45. Rxg4 $142 Rxg4 46. Rb2) 45... Rxg3+ {[%emt 0:00:46]} 46. Rxg3 {[%emt 0:00:06]} Rxg3+ {[%emt 0:00:19]} 47. Kxg3 {[%emt 0:00:02][%mdl 4096] Endgame KN-KN} Kg7 {[%emt 0:00:09]} 48. Kg4 {[%emt 0:00:22]} Kg6 {[%emt 0:00:07] And now ...h5+ would win.} 49. Nc3 {[%emt 0:01:54]} h5+ {[%emt 0:00:56]} 50. Kh4 {[%emt 0:00:02]} Kf5 {[%emt 0:01:42] Hoping for ...Kf4.} 51. Kxh5 {[%emt 0:01:11]} e4 {[%emt 0:03:08]} (51... Kf4 $142 52. Ne2+ Ke4 53. Kg4 Kxd5 54. Kg3 Kc4 55. Kf2 d5 56. Ke1 d4 57. Ng3 Kd3 58. Nh1 c5 59. Kd1 c4 60. Nf2+ Kc3 61. a4 Kb2 62. Ke2 e4 63. Nxe4 c3 64. Nf2 Nc5 65. Nd1+ Kb1 66. Nf2 c2 67. Ng4 c1=Q 68. Kf3 Kb2 69. Nf2 Qe3+ 70. Kg2 Qc1 71. Kg3 Qe3+ 72. Kg2 Qc1 73. Nh3 Qe3 74. Nf2) 52. a4 {[%emt 0:02:59]} Ke5 {[%emt 0:02:57]} 53. Kg4 {[%emt 0:00:51]} Kd4 {[%emt 0:01:20]} 54. Ne2+ {[%emt 0:01:11]} Kxd5 {[%emt 0:00:18]} 55. Kf4 {[%emt 0:02:31]} Nc5 {[%emt 0:00:07]} 56. a5 {[%emt 0:00:23]} Kc4 {[%emt 0:01:49]} 57. a6 {[%emt 0:00:50]} Nxa6 {[%emt 0:00:05]} 58. Kxe4 {[%emt 0:00:05]} c5 {[%emt 0:00:22] Weighted Error Value: White=0.91/Black=0.35} (58... d5+ $142 59. Ke3 c5) 0-1

[Event "Croatian 1B League 2022"]
[Site "Porec"]
[Date "2022.09.25"]
[Round "2.8"]
[White "Skuhala, Jernej"]
[Black "Maksimovic, Bojan"]
[Result "1/2-1/2"]
[ECO "B30"]
[WhiteElo "2349"]
[BlackElo "2468"]
[Annotator "RC"]
[PlyCount "84"]
[EventDate "2022.09.24"]
[EventType "team-tourn"]
[EventCountry "CRO"]
[SourceTitle "playchess.com"]
[Source "ChessBase"]
[SourceQuality "1"]
[TimeControl "40/5400+30:1800+30"]

1. e4 c5 2. Nf3 Nc6 3. Nc3 e5 4. Bc4 {[%emt 0:01:33]} g6 {[%emt 0:01:14]} 5. d3 {[%emt 0:01:52]} h6 {[%emt 0:00:34]} 6. Be3 {[%emt 0:03:15]} d6 {[%emt 0:00:16]} 7. Nd2 {[%emt 0:05:50]} Nf6 {[%emt 0:06:01]} 8. Nd5 {[%emt 0:21:21]} Bg7 {[%emt 0:05:03]} 9. Nxf6+ {[%emt 0:03:07]} Bxf6 {[%emt 0:00:07]} 10. c3 {[%emt 0:00:42]} Bg7 {[%emt 0:07:41]} 11. a3 {[%emt 0:08:54]} Rb8 {[%emt 0:03:00]} 12. b4 {[%emt 0:04:39]} b6 {[%emt 0:00:07]} 13. Qb3 {[%emt 0:01:46]} O-O {[%emt 0:02:24]} 14. O-O {[%emt 0:00:14]} Qe7 {[%emt 0:11:38]} 15. Bd5 {[%emt 0:08:40]} Bd7 {[%emt 0:01:06]} 16. Nc4 {[%emt 0:03:10]} b5 {[%emt 0:07:31]} 17. Nxd6 {[%emt 0:01:46]} Qxd6 {[%emt 0:00:06]} 18. Bxc5 {[%emt 0:00:02]} Qc7 {[%emt 0:00:09]} 19. Bxf8 {[%emt 0:00:15]} Rxf8 {[%emt 0:00:05]} 20. a4 {[%emt 0:00:26]} a6 {[%emt 0:03:44]} 21. axb5 {[%emt 0:05:00]} axb5 {[%emt 0:00:10]} 22. Ra6 {[%emt 0:00:06]} Ne7 {[%emt 0:00:45]} 23. c4 {[%emt 0:00:24]} bxc4 {[%emt 0:04:27]} 24. Bxc4 {[%emt 0:04:48]} Nc6 {[%emt 0:03:29]} 25. Rfa1 {[%emt 0:05:34]} Nd4 {[%emt 0:02:37]} 26. Qa2 {[%emt 0:00:13]} Be6 {[%emt 0:01:33]} 27. b5 {[%emt 0:01:59]} Rb8 {[%emt 0:04:02]} 28. Ra8 {[%emt 0:01:41]} Bf8 {[%emt 0:06:43]} 29. Rxb8 {[%emt 0:01:04]} Qxb8 {[%emt 0:00:05]} 30. Qa7 {[%emt 0:00:11]} Qd8 {[%emt 0:02:13]} 31. b6 {[%emt 0:02:56]} Bxc4 {[%emt 0:00:05]} 32. dxc4 {[%emt 0:02:56]} Bc5 {[%emt 0:01:07]} 33. Qa8 {[%emt 0:05:24]} Bxb6 {[%emt 0:00:11]} 34. c5 {[%emt 0:00:03]} Kg7 {[%emt 0:02:44]} 35. cxb6 {[%emt 0:00:36]} Qxb6 {[%emt 0:00:04]} 36. Qd5 {[%emt 0:00:23]} Qc7 {[%emt 0:00:16]} 37. g3 {[%emt 0:01:14]} Ne6 {[%emt 0:01:12]} 38. Kg2 {[%emt 0:00:43]} Qc3 {[%emt 0:01:57]} 39. Ra7 {[%emt 0:00:58]} Ng5 {[%emt 0:00:21]} 40. Qd1 {[%emt 0:00:00]} Qc6 {[%emt 0:00:00]} 41. Qd5 {[%emt 0:07:29]} Qc3 {[%emt 0:07:29]} 42. Qd1 {[%emt 0:00:14]} Qc6 {[%emt 0:00:05]} 1/2-1/2